{"text_format":"3","workbook":"xlsx","n_sheets":4,"sheets":["Nakupovalni seznam","Razčlenitev proračuna","Seznam opravil","Skupna raba seznama"],"not_rendered":{"charts":2,"images":2,"defined_names":12},"read":"whole","date_system":"1900"}

{"sheet":"Nakupovalni seznam","index":0,"n_rows":25,"n_cols":8,"rows_kept":25,"merged":[[2,1,2,7],[3,1,3,2],[4,4,6,7]]}
[null,"Nazaj v šolo","Načrtovalnik"]
[]
[null,"Sledite napredku nakupovanja glede na zneske v kategoriji proračuna, ki so vneseni v razčlenitvi proračuna."]
[null,"Povzetek proračuna",null,null,{"$f":"\"Napredovanje nakupa (\"&COUNTIFS(Kontrolni_seznam[Kupljeno], \">0\")&\" od \"&COUNTIFS(Kontrolni_seznam[Za nakup], \">0\")&\")\"","v":"Napredovanje nakupa (1 od 6)"}]
[null,"Proračun",{"v":1500,"d":"1,500.00 €"},null,{"$f":"IFERROR(COUNTIFS(Kontrolni_seznam[Za nakup],\">0\",Kontrolni_seznam[Kupljeno],\">0\")/SumItemsToBuy,0)","v":{"v":0.16666666666666666,"d":"17%"}}]
[null,"Skupni znesek nakupovalnega seznama",{"$f":"IFERROR(SUM(ChecklistTotal), \"\")","v":{"v":365,"d":"365.00 €"}}]
[null,"Končno stanje",{"$f":"IFERROR(C5-C6, \"\")","v":{"v":1135,"d":"1,135.00 €"}}]
[null,"Nakupovalni seznam"]
[null,"Element","Kategorija","Količina","Za nakup","Cena","Kupljeno","Skupni stroški"]
[null,"Matematika","Učbeniki",1,1,{"v":55,"d":"55.00 €"},1,{"$f":"IFERROR(Kontrolni_seznam[Količina]*Kontrolni_seznam[Cena], \"\")","v":{"v":55,"d":"55.00 €"}}]
[null,"Angleščina","Učbeniki",1,1,null,null,{"$f":"IFERROR(Kontrolni_seznam[Količina]*Kontrolni_seznam[Cena], \"\")","v":0}]
[null,"Nahrbtnik","Zaloga",1,null,{"v":30,"d":"30.00 €"},null,{"$f":"IFERROR(Kontrolni_seznam[Količina]*Kontrolni_seznam[Cena], \"\")","v":{"v":30,"d":"30.00 €"}}]
[null,"Kalkulator","Zaloga",1,{"$nulls":3},{"$f":"IFERROR(Kontrolni_seznam[Količina]*Kontrolni_seznam[Cena], \"\")","v":0}]
[null,"Označevalniki","Zaloga",3,{"$nulls":3},{"$f":"IFERROR(Kontrolni_seznam[Količina]*Kontrolni_seznam[Cena], \"\")","v":0}]
[null,"Enotno","Obleke",2,1,{"v":100,"d":"100.00 €"},null,{"$f":"IFERROR(Kontrolni_seznam[Količina]*Kontrolni_seznam[Cena], \"\")","v":{"v":200,"d":"200.00 €"}}]
[null,"Srajca, zapeta","Obleke",4,{"$nulls":3},{"$f":"IFERROR(Kontrolni_seznam[Količina]*Kontrolni_seznam[Cena], \"\")","v":0}]
[null,"Srajca, majice s kratkimi rokavi","Obleke",5,{"$nulls":3},{"$f":"IFERROR(Kontrolni_seznam[Količina]*Kontrolni_seznam[Cena], \"\")","v":0}]
[null,"Kratke hlače","Obleke",2,{"$nulls":3},{"$f":"IFERROR(Kontrolni_seznam[Količina]*Kontrolni_seznam[Cena], \"\")","v":0}]
[null,"Superge","Obleke",2,1,null,null,{"$f":"IFERROR(Kontrolni_seznam[Količina]*Kontrolni_seznam[Cena], \"\")","v":0}]
[null,"Nogavice","Obleke",10,{"$nulls":3},{"$f":"IFERROR(Kontrolni_seznam[Količina]*Kontrolni_seznam[Cena], \"\")","v":0}]
[null,"Pomladanska jakna","Obleke",1,1,{"v":80,"d":"80.00 €"},null,{"$f":"IFERROR(Kontrolni_seznam[Količina]*Kontrolni_seznam[Cena], \"\")","v":{"v":80,"d":"80.00 €"}}]
[null,"Puloverji","Obleke",1,{"$nulls":3},{"$f":"IFERROR(Kontrolni_seznam[Količina]*Kontrolni_seznam[Cena], \"\")","v":0}]
[null,"Jopice","Obleke",1,{"$nulls":3},{"$f":"IFERROR(Kontrolni_seznam[Količina]*Kontrolni_seznam[Cena], \"\")","v":0}]
[null,"Perilo","Obleke",10,{"$nulls":3},{"$f":"IFERROR(Kontrolni_seznam[Količina]*Kontrolni_seznam[Cena], \"\")","v":0}]
[null,"Zimska jakna","Obleke",1,1,null,null,{"$f":"IFERROR(Kontrolni_seznam[Količina]*Kontrolni_seznam[Cena], \"\")","v":0}]

{"sheet":"Razčlenitev proračuna","index":1,"n_rows":6,"n_cols":3,"rows_kept":6}
[null,"Razčlenitev proračuna"]
[null,"Dodajte kategorije in zneske proračuna, da jih primerjate z nakupovalnim seznamom."]
[null,"Kategorija","Skupni stroški"]
[null,"Obleke",{"$f":"IFERROR(SUMIFS(Kontrolni_seznam[Skupni stroški],Kontrolni_seznam[Kategorija],Kategorija[Kategorija]), \"\")","v":{"v":280,"d":"280.00 €"}}]
[null,"Zaloga",{"$f":"IFERROR(SUMIFS(Kontrolni_seznam[Skupni stroški],Kontrolni_seznam[Kategorija],Kategorija[Kategorija]), \"\")","v":{"v":30,"d":"30.00 €"}}]
[null,"Učbeniki",{"$f":"IFERROR(SUMIFS(Kontrolni_seznam[Skupni stroški],Kontrolni_seznam[Kategorija],Kategorija[Kategorija]), \"\")","v":{"v":55,"d":"55.00 €"}}]

{"sheet":"Seznam opravil","index":2,"n_rows":22,"n_cols":3,"rows_kept":22}
[null,"Seznam opravil"]
[null,"Spremljajte vse dejavnosti, ki jih morate opraviti pred začetkom šolskega leta."]
[null,"Dokončano","Opravilo"]
[null,"x","Dokončajte vse obrazce za registracijo"]
[null,null,"Zabeležite šolski sistematski pregled in po potrebi pregled pri okulistu"]
[null,null,"Preverite vse potrebne imunizacije"]
[null,null,"Od zdravnika pridobite navodila za doziranje vseh potrebnih zdravil"]
[null,null,"Preglejte šolska pravila oblačenja"]
[null,null,"Pridobite seznam šolskih potrebščin"]
[null,null,"Spoznajte učitelja"]
[null,null,"Določite želeni način komuniciranja učitelja (telefon, e-pošta, pisna sporočila)"]
[null,null,"Oglejte si šolo skupaj z otrokom"]
[null,null,"Pomagajte otroku, da si zapomni domači telefon, službeni telefon in domači naslov"]
[null,null,"Organizirajte prevoz, določite varno mesto za srečanje in vadite rutino"]
[null,null,"Če bo otrok hodil peš v šolo, pojdita skupaj nekajkrat peš v šolo in nazaj."]
[null,null,"Če bodo otroka v šolo vozili drugi, predstavite otroku vse voznike."]
[null,null,"Če se bo otrok vozil v šolo z avtobusom, določite vozni red avtobusov in avtobusne postaje."]
[null,null,"Priskrbite za varstvo otroka/podaljšano bivanje"]
[null,null,"Načrtujte meni za zajtrke, dopoldanske malice, kosile in popoldanske malice"]
[null,null,"Določite mesto in urnik za domače naloge"]
[null,null,"Vzpostavite urnik spanja najmanj dva tedna pred začetkom šolskega leta"]
[null,null,"Pripravite koledar vseh šolskih dogodkov in dejavnosti"]

{"sheet":"Skupna raba seznama","index":3,"n_rows":4,"n_cols":5,"rows_kept":4}
[null,"Skupna raba seznama",null,null,"Ta seznam dajte v skupno rabo z drugimi, da lahko prispevajo svojo vsebino. Izberite možnost skupne rabe v zgornjem desnem kotu ali pa pritisnite tipko ALT in Y. Shranite datoteko v OneDrive in pošljite povezavo prijateljem."]
[null,"Ime","E-pošta","V skupni rabi?"]
[null,"Oseba 1","oseba@email.com","Da"]
[null,"Oseba 2","oseba@email.com","Ne"]